[Event "Esbjerg Efterår 2021 - Esbjergmesterskabet"]
[Site "Esbjerg, Denmark"]
[Date "2021.10.22"]
[Round "3.1"]
[White "Pedersen, Nicolai Vesterbæk"]
[Black "Bønnelykke, Ole"]
[Result "1-0"]
[TimeControl "1.-3. 20 min + 5 sek, 4.-7. 90 min + 30 sek"]
[WhiteElo "2343"]
[BlackElo "1991"]

1. c4 {[%clk 00:20:07]} {[%emt 00:00:02]} e5 {[%clk 00:20:08]} {[%emt
00:00:03]} 2. Nc3 {[%clk 00:20:09]} {[%emt 00:00:03]} Nc6 {[%clk 00:20:10]}
{[%emt 00:00:02]} 3. Nf3 {[%clk 00:20:08]} {[%emt 00:00:06]} g6 {[%clk
00:20:07]} {[%emt 00:00:07]} 4. h4 {[%clk 00:18:24]} {[%emt 00:01:50]} h6
{[%clk 00:19:39]} {[%emt 00:00:33]} 5. e3 {[%clk 00:14:00]} {[%emt 00:04:29]}
Bg7 {[%clk 00:18:54]} {[%emt 00:00:49]} 6. d4 {[%clk 00:11:09]} {[%emt
00:02:57]} d6 {[%clk 00:18:36]} {[%emt 00:00:23]} 7. dxe5 {[%clk 00:10:07]}
{[%emt 00:01:07]} Nxe5 {[%clk 00:18:21]} {[%emt 00:00:20]} 8. Nxe5 {[%clk
00:09:50]} {[%emt 00:00:22]} dxe5 {[%clk 00:17:22]} {[%emt 00:01:04]} 9. Qxd8+
{[%clk 00:09:20]} {[%emt 00:00:36]} Kxd8 {[%clk 00:17:24]} {[%emt 00:00:02]} 10.
b3 {[%clk 00:09:05]} {[%emt 00:00:20]} c6 {[%clk 00:16:34]} {[%emt 00:00:55]}
11. Ba3 {[%clk 00:09:03]} {[%emt 00:00:07]} Bf5 {[%clk 00:15:31]} {[%emt
00:01:08]} 12. O-O-O+ {[%clk 00:07:34]} {[%emt 00:01:33]} Ke8 {[%clk 00:15:23]}
{[%emt 00:00:13]} 13. Bd3 {[%clk 00:04:47]} {[%emt 00:02:52]} Nf6 {[%clk
00:12:08]} {[%emt 00:03:20]} 14. Bxf5 {[%clk 00:03:22]} {[%emt 00:01:31]} gxf5
{[%clk 00:12:09]} {[%emt 00:00:03]} 15. Rh3 {[%clk 00:01:27]} {[%emt 00:02:01]}
e4 {[%clk 00:10:43]} {[%emt 00:01:31]} 16. f3 {[%clk 00:00:28]} {[%emt
00:01:05]} Nd7 {[%clk 00:09:09]} {[%emt 00:01:38]} 17. Kc2 {[%clk 00:00:23]}
{[%emt 00:00:11]} Bxc3 {[%clk 00:07:40]} {[%emt 00:01:34]} 18. Kxc3 {[%clk
00:00:26]} {[%emt 00:00:01]} Ne5 {[%clk 00:07:25]} {[%emt 00:00:19]} 19. Rd4
{[%clk 00:00:18]} {[%emt 00:00:14]} Rg8 {[%clk 00:06:42]} {[%emt 00:00:48]} 20.
fxe4 {[%clk 00:00:15]} {[%emt 00:00:07]} Rxg2 {[%clk 00:06:15]} {[%emt
00:00:33]} 21. exf5 {[%clk 00:00:17]} {[%emt 00:00:04]} Rd8 {[%clk 00:04:59]}
{[%emt 00:01:20]} 22. Bd6 {[%clk 00:00:14]} {[%emt 00:00:09]} f6 {[%clk
00:03:24]} {[%emt 00:01:39]} 23. a4 {[%clk 00:00:18]} Nf7 {[%clk 00:03:10]}
{[%emt 00:00:18]} 24. Bf4 {[%clk 00:00:17]} {[%emt 00:00:05]} Rxd4 {[%clk
00:03:02]} {[%emt 00:00:14]} 25. Kxd4 {[%clk 00:00:10]} {[%emt 00:00:13]} h5
{[%clk 00:02:41]} {[%emt 00:00:25]} 26. a5 {[%clk 00:00:09]} {[%emt 00:00:07]}
Kd7 {[%clk 00:02:30]} {[%emt 00:00:15]} 27. Bb8 {[%clk 00:00:09]} {[%emt
00:00:06]} a6 {[%clk 00:02:06]} {[%emt 00:00:29]} 28. Bf4 {[%clk 00:00:08]}
{[%emt 00:00:06]} Rb2 {[%clk 00:01:29]} {[%emt 00:00:40]} 29. Kc3 {[%clk
00:00:08]} {[%emt 00:00:07]} Rg2 {[%clk 00:01:26]} {[%emt 00:00:06]} 30. Rg3
{[%clk 00:00:11]} {[%emt 00:00:04]} Ra2 {[%clk 00:01:09]} {[%emt 00:00:22]} 31.
b4 {[%clk 00:00:10]} {[%emt 00:00:08]} Ne5 {[%clk 00:00:58]} {[%emt 00:00:15]}
32. Rg7+ {[%clk 00:00:12]} {[%emt 00:00:03]} Kd6 {[%clk 00:01:00]} {[%emt
00:00:03]} 33. Rf7 {[%clk 00:00:13]} {[%emt 00:00:04]} Ra3+ {[%clk 00:00:56]}
{[%emt 00:00:09]} 34. Kb2 {[%clk 00:00:00]} {[%emt 00:00:38]} Rxe3 {[%clk
00:00:34]} {[%emt 00:00:51]} 35. Rxf6+ {[%clk 00:02:11]} {[%emt 00:00:08]} Kd7
{[%clk 00:00:37]} {[%emt 00:00:03]} 36. Bxe3 {[%clk 00:02:06]} {[%emt
00:00:09]} Nxc4+ {[%clk 00:00:40]} {[%emt 00:00:02]} 37. Kc3 {[%clk 00:01:37]}
{[%emt 00:00:34]} 1-0

[Event "Esbjerg Efterår 2021 - Esbjergmesterskabet"]
[Site "Esbjerg, Denmark"]
[Date "2021.10.22"]
[Round "3.2"]
[White "Eriksson, Christian Altenburg"]
[Black "Rødgaard, John"]
[Result "0-1"]
[TimeControl "1.-3. 20 min + 5 sek, 4.-7. 90 min + 30 sek"]
[WhiteElo "2135"]
[BlackElo "2319"]

1. e4 {[%clk 00:20:07]} {[%emt 00:00:02]} e6 {[%clk 00:19:52]} {[%emt
00:00:18]} 2. d4 {[%clk 00:20:08]} {[%emt 00:00:04]} d5 {[%clk 00:19:54]}
{[%emt 00:00:02]} 3. Bd3 {[%clk 00:20:10]} {[%emt 00:00:03]} dxe4 {[%clk
00:15:59]} {[%emt 00:04:00]} 4. Bxe4 {[%clk 00:20:13]} {[%emt 00:00:03]} Nf6
{[%clk 00:16:00]} {[%emt 00:00:03]} 5. Bf3 {[%clk 00:20:16]} {[%emt 00:00:02]}
c5 {[%clk 00:15:13]} {[%emt 00:00:52]} 6. Ne2 {[%clk 00:20:15]} {[%emt
00:00:06]} Nc6 {[%clk 00:14:00]} {[%emt 00:01:18]} 7. Be3 {[%clk 00:20:11]}
{[%emt 00:00:09]} Nd5 {[%clk 00:09:30]} {[%emt 00:04:36]} 8. Bxd5 {[%clk
00:19:18]} {[%emt 00:00:59]} Qxd5 {[%clk 00:08:57]} {[%emt 00:00:36]} 9. Nbc3
{[%clk 00:19:05]} {[%emt 00:00:19]} Qc4 {[%clk 00:04:42]} {[%emt 00:04:20]} 10.
b3 {[%clk 00:17:24]} {[%emt 00:01:46]} Qa6 {[%clk 00:03:39]} {[%emt 00:01:07]}
11. dxc5 {[%clk 00:16:40]} {[%emt 00:00:50]} Bd7 {[%clk 00:03:18]} {[%emt
00:00:26]} 12. O-O {[%clk 00:14:46]} {[%emt 00:02:00]} Rd8 {[%clk 00:02:47]}
{[%emt 00:00:35]} 13. Qd3 {[%clk 00:13:16]} {[%emt 00:01:36]} Qxd3 {[%clk
00:02:25]} {[%emt 00:00:27]} 14. cxd3 {[%clk 00:13:19]} {[%emt 00:00:02]} Nb4
{[%clk 00:01:48]} {[%emt 00:00:41]} 15. d4 {[%clk 00:12:50]} {[%emt 00:00:34]}
Bc6 {[%clk 00:01:48]} {[%emt 00:00:05]} 16. Rfd1 {[%clk 00:11:55]} {[%emt
00:01:00]} Be7 {[%clk 00:01:38]} {[%emt 00:00:16]} 17. a3 {[%clk 00:11:30]}
{[%emt 00:00:30]} Nc2 {[%clk 00:01:04]} {[%emt 00:00:39]} 18. Ra2 {[%clk
00:11:19]} {[%emt 00:00:15]} Nxe3 {[%clk 00:01:07]} {[%emt 00:00:03]} 19. fxe3
{[%clk 00:11:22]} {[%emt 00:00:02]} f5 {[%clk 00:01:08]} {[%emt 00:00:04]} 20.
b4 {[%clk 00:11:05]} {[%emt 00:00:23]} Kf7 {[%clk 00:01:01]} {[%emt 00:00:11]}
21. b5 {[%clk 00:10:56]} {[%emt 00:00:15]} Bd7 {[%clk 00:01:04]} 22. a4 {[%clk
00:10:35]} {[%emt 00:00:27]} g5 {[%clk 00:00:53]} {[%emt 00:00:15]} 23. Kf2
{[%clk 00:09:14]} {[%emt 00:01:26]} Kg6 {[%clk 00:00:40]} {[%emt 00:00:18]} 24.
Rc2 {[%clk 00:08:28]} {[%emt 00:00:52]} Bf6 {[%clk 00:00:31]} {[%emt 00:00:13]}
25. d5 {[%clk 00:08:12]} {[%emt 00:00:21]} exd5 {[%clk 00:00:30]} {[%emt
00:00:06]} 26. Nxd5 {[%clk 00:07:58]} {[%emt 00:00:19]} Be6 {[%clk 00:00:28]}
{[%emt 00:00:08]} 27. Rcd2 {[%clk 00:08:00]} {[%emt 00:00:03]} Rc8 {[%clk
00:00:23]} {[%emt 00:00:10]} 28. Nxf6 {[%clk 00:07:23]} {[%emt 00:00:41]} Kxf6
{[%clk 00:00:27]} {[%emt 00:00:02]} 29. Rc1 {[%clk 00:07:00]} {[%emt 00:00:28]}
Rhd8 {[%clk 00:00:29]} {[%emt 00:00:03]} 30. Nd4 {[%clk 00:06:52]} {[%emt
00:00:13]} Bd5 {[%clk 00:00:25]} {[%emt 00:00:09]} 31. c6 {[%clk 00:06:15]}
{[%emt 00:00:42]} bxc6 {[%clk 00:00:20]} {[%emt 00:00:10]} 32. Nxc6 {[%clk
00:06:15]} {[%emt 00:00:05]} Bxc6 {[%clk 00:00:16]} {[%emt 00:00:09]} 33. Rxd8
{[%clk 00:06:12]} {[%emt 00:00:08]} Rxd8 {[%clk 00:00:19]} {[%emt 00:00:02]} 34.
Rxc6+ {[%clk 00:06:15]} {[%emt 00:00:01]} Ke5 {[%clk 00:00:24]} 35. Ke2 {[%clk
00:06:02]} {[%emt 00:00:18]} Rd7 {[%clk 00:00:24]} {[%emt 00:00:05]} 36. g3
{[%clk 00:05:59]} {[%emt 00:00:08]} g4 {[%clk 00:00:14]} {[%emt 00:00:15]} 37.
a5 {[%clk 00:05:26]} {[%emt 00:00:38]} Rd5 {[%clk 00:00:13]} {[%emt 00:00:06]}
38. Ra6 {[%clk 00:04:43]} {[%emt 00:00:47]} Rxb5 {[%clk 00:00:16]} {[%emt
00:00:02]} 39. Rxa7 {[%clk 00:04:46]} {[%emt 00:00:02]} Rb2+ {[%clk 00:00:12]}
{[%emt 00:00:09]} 40. Kd3 {[%clk 00:04:50]} {[%emt 00:00:01]} Rxh2 {[%clk
00:00:16]} {[%emt 00:00:02]} 41. a6 {[%clk 00:04:50]} {[%emt 00:00:05]} Ra2
{[%clk 00:00:18]} {[%emt 00:00:03]} 42. Re7+ {[%clk 00:04:44]} {[%emt
00:00:11]} Kd5 {[%clk 00:00:12]} {[%emt 00:00:10]} 43. a7 {[%clk 00:04:41]}
{[%emt 00:00:08]} Ra3+ {[%clk 00:00:15]} {[%emt 00:00:02]} 44. Kd2 {[%clk
00:04:43]} {[%emt 00:00:03]} h5 {[%clk 00:00:19]} {[%emt 00:00:02]} 45. Rh7
{[%clk 00:04:28]} {[%emt 00:00:19]} Ke4 {[%clk 00:00:19]} {[%emt 00:00:05]} 46.
Rf7 {[%clk 00:03:49]} {[%emt 00:00:45]} Ra2+ {[%clk 00:00:20]} {[%emt
00:00:04]} 47. Kc3 {[%clk 00:03:49]} {[%emt 00:00:04]} Kxe3 {[%clk 00:00:22]}
{[%emt 00:00:03]} 48. Kb3 {[%clk 00:03:23]} {[%emt 00:00:31]} Ra1 {[%clk
00:00:24]} {[%emt 00:00:03]} 49. Kb2 {[%clk 00:03:17]} {[%emt 00:00:12]} Ra5
{[%clk 00:00:24]} {[%emt 00:00:05]} 50. Kc3 {[%clk 00:03:09]} {[%emt 00:00:13]}
h4 {[%clk 00:00:19]} {[%emt 00:00:10]} 51. gxh4 {[%clk 00:03:07]} {[%emt
00:00:07]} g3 {[%clk 00:00:23]} 52. h5 {[%clk 00:02:53]} {[%emt 00:00:19]} g2
{[%clk 00:00:24]} {[%emt 00:00:04]} 53. Rg7 {[%clk 00:02:56]} {[%emt 00:00:01]}
Kf2 {[%clk 00:00:27]} {[%emt 00:00:02]} 54. h6 {[%clk 00:02:53]} {[%emt
00:00:09]} Rxa7 {[%clk 00:00:21]} {[%emt 00:00:11]} 55. Rxa7 {[%clk 00:01:31]}
{[%emt 00:01:27]} g1=Q {[%emt 00:00:04]} 56. h7 {[%clk 00:01:28]} {[%emt
00:00:06]} Qe1+ {[%clk 00:00:18]} {[%emt 00:00:09]} 57. Kb3 {[%clk 00:01:14]}
{[%emt 00:00:20]} Qe3+ {[%clk 00:00:17]} {[%emt 00:00:06]} 58. Kc2 {[%clk
00:01:14]} {[%emt 00:00:05]} Qh3 {[%clk 00:00:09]} {[%emt 00:00:13]} 59. Rf7
{[%clk 00:01:10]} {[%emt 00:00:09]} Ke3 {[%clk 00:00:13]} {[%emt 00:00:02]} 60.
Kc3 {[%clk 00:01:08]} {[%emt 00:00:06]} f4 {[%clk 00:00:15]} {[%emt 00:00:03]}
61. Re7 {[%clk 00:01:08]} {[%emt 00:00:05]} Kf2+ {[%clk 00:00:19]} {[%emt
00:00:01]} 62. Kd4 {[%clk 00:01:01]} {[%emt 00:00:11]} f3 {[%clk 00:00:23]}
{[%emt 00:00:01]} 63. Rf7 {[%clk 00:00:46]} {[%emt 00:00:20]} Qh4+ {[%clk
00:00:23]} {[%emt 00:00:06]} 64. Kd3 {[%clk 00:00:45]} {[%emt 00:00:05]} Qh5
{[%clk 00:00:20]} {[%emt 00:00:08]} 65. Ke4 {[%clk 00:00:32]} {[%emt 00:00:18]}
Ke2 {[%clk 00:00:17]} {[%emt 00:00:08]} 66. Kf4 {[%clk 00:00:07]} {[%emt
00:00:30]} Qxf7+ {[%clk 00:00:00]} {[%emt 00:00:02]} {ej færdigspillet} 0-1

[Event "Esbjerg Efterår 2021 - Esbjergmesterskabet"]
[Site "Esbjerg, Denmark"]
[Date "2021.10.22"]
[Round "3.3"]
[White "Jensen, Henrik Tranberg"]
[Black "Medhus, Vitus Bondo"]
[Result "0-1"]
[TimeControl "1.-3. 20 min + 5 sek, 4.-7. 90 min + 30 sek"]
[WhiteElo "1960"]
[BlackElo "1875"]

1. d4 {[%clk 00:20:06]} {[%emt 00:00:03]} Nf6 {[%clk 00:20:07]} {[%emt
00:00:03]} 2. c4 {[%clk 00:20:10]} {[%emt 00:00:02]} c5 {[%clk 00:20:10]}
{[%emt 00:00:02]} 3. d5 {[%clk 00:20:13]} {[%emt 00:00:01]} b5 {[%clk
00:20:14]} {[%emt 00:00:02]} 4. e3 {[%clk 00:19:51]} {[%emt 00:00:26]} b4
{[%clk 00:17:52]} {[%emt 00:02:28]} 5. Nf3 {[%clk 00:18:53]} {[%emt 00:01:03]}
g6 {[%clk 00:17:37]} {[%emt 00:00:20]} 6. Bd3 {[%clk 00:17:29]} {[%emt
00:01:29]} Bg7 {[%clk 00:16:58]} {[%emt 00:00:45]} 7. O-O {[%clk 00:17:30]}
{[%emt 00:00:03]} O-O {[%clk 00:16:58]} {[%emt 00:00:04]} 8. Nbd2 {[%clk
00:16:53]} {[%emt 00:00:43]} d6 {[%clk 00:15:56]} {[%emt 00:01:08]} 9. h3
{[%clk 00:16:51]} {[%emt 00:00:07]} a5 {[%clk 00:14:30]} {[%emt 00:01:31]} 10.
e4 {[%clk 00:16:35]} {[%emt 00:00:20]} a4 {[%clk 00:13:29]} {[%emt 00:01:06]}
11. Rb1 {[%clk 00:14:43]} {[%emt 00:01:57]} Bd7 {[%clk 00:12:28]} {[%emt
00:01:06]} 12. Re1 {[%clk 00:14:20]} {[%emt 00:00:26]} Qc8 {[%clk 00:12:12]}
{[%emt 00:00:22]} 13. e5 {[%clk 00:13:54]} {[%emt 00:00:31]} Nh5 {[%clk
00:11:52]} {[%emt 00:00:25]} 14. exd6 {[%clk 00:13:42]} {[%emt 00:00:17]} exd6
{[%clk 00:11:47]} {[%emt 00:00:10]} 15. Ne4 {[%clk 00:13:42]} {[%emt 00:00:05]}
Ra6 {[%clk 00:11:04]} {[%emt 00:00:48]} 16. Bg5 {[%clk 00:12:23]} {[%emt
00:01:24]} f6 {[%clk 00:10:29]} {[%emt 00:00:40]} 17. Bd2 {[%clk 00:11:13]}
{[%emt 00:01:14]} f5 {[%clk 00:09:22]} {[%emt 00:01:13]} 18. Neg5 {[%clk
00:10:45]} {[%emt 00:00:32]} h6 {[%clk 00:09:04]} {[%emt 00:00:23]} 19. Ne6
{[%clk 00:10:39]} {[%emt 00:00:12]} Bxe6 {[%clk 00:09:07]} {[%emt 00:00:03]} 20.
Rxe6 {[%clk 00:10:38]} {[%emt 00:00:04]} Rf6 {[%clk 00:08:22]} {[%emt
00:00:52]} 21. Re2 {[%clk 00:07:53]} {[%emt 00:02:49]} Nd7 {[%clk 00:07:08]}
{[%emt 00:01:19]} 22. Qe1 {[%clk 00:07:44]} {[%emt 00:00:14]} Rf8 {[%clk
00:06:06]} {[%emt 00:01:07]} 23. Nh4 {[%clk 00:06:14]} {[%emt 00:01:33]} Ne5
{[%clk 00:06:07]} {[%emt 00:00:06]} 24. Rxe5 {[%clk 00:05:23]} {[%emt
00:00:56]} dxe5 {[%clk 00:06:06]} {[%emt 00:00:07]} 25. Nxg6 {[%clk 00:05:24]}
{[%emt 00:00:03]} 0-1

[Event "Esbjerg Efterår 2021 - Esbjergmesterskabet"]
[Site "Esbjerg, Denmark"]
[Date "2021.10.22"]
[Round "3.4"]
[White "Mortensen, Henrik"]
[Black "Marcussen, Claus"]
[Result "1-0"]
[TimeControl "1.-3. 20 min + 5 sek, 4.-7. 90 min + 30 sek"]
[WhiteElo "1991"]
[BlackElo "1543"]

1. d4 {[%clk 00:20:09]} f5 {[%clk 00:20:09]} {[%emt 00:00:02]} 2. g3 {[%clk
00:20:12]} {[%emt 00:00:02]} Nf6 {[%clk 00:20:13]} {[%emt 00:00:02]} 3. Bg2
{[%clk 00:20:15]} {[%emt 00:00:01]} e6 {[%clk 00:20:17]} {[%emt 00:00:02]} 4.
c4 {[%clk 00:20:13]} {[%emt 00:00:06]} c6 {[%clk 00:20:20]} {[%emt 00:00:02]} 5.
Nc3 {[%clk 00:20:16]} {[%emt 00:00:02]} d5 {[%clk 00:20:22]} {[%emt 00:00:03]}
6. Nf3 {[%clk 00:19:59]} {[%emt 00:00:22]} Bd6 {[%clk 00:20:25]} {[%emt
00:00:02]} 7. Bf4 {[%clk 00:19:49]} {[%emt 00:00:15]} O-O {[%clk 00:20:25]}
{[%emt 00:00:05]} 8. O-O {[%clk 00:19:49]} {[%emt 00:00:05]} Qc7 {[%clk
00:20:13]} {[%emt 00:00:17]} 9. Bxd6 {[%clk 00:19:45]} {[%emt 00:00:09]} Qxd6
{[%clk 00:20:17]} {[%emt 00:00:02]} 10. Ne5 {[%clk 00:18:48]} {[%emt 00:01:01]}
Nbd7 {[%clk 00:20:10]} {[%emt 00:00:11]} 11. Nxd7 {[%clk 00:18:27]} {[%emt
00:00:27]} Bxd7 {[%clk 00:20:14]} {[%emt 00:00:02]} 12. c5 {[%clk 00:17:59]}
{[%emt 00:00:32]} Qe7 {[%clk 00:20:09]} {[%emt 00:00:10]} 13. f3 {[%clk
00:17:43]} {[%emt 00:00:21]} e5 {[%clk 00:19:58]} {[%emt 00:00:16]} 14. e3
{[%clk 00:17:11]} {[%emt 00:00:37]} Rae8 {[%clk 00:19:20]} {[%emt 00:00:43]} 15.
Re1 {[%clk 00:16:54]} {[%emt 00:00:22]} h6 {[%clk 00:18:25]} {[%emt 00:00:59]}
16. Qd2 {[%clk 00:16:50]} {[%emt 00:00:10]} Nh7 {[%clk 00:18:27]} {[%emt
00:00:03]} 17. b4 {[%clk 00:16:31]} {[%emt 00:00:24]} e4 {[%clk 00:18:07]}
{[%emt 00:00:24]} 18. f4 {[%clk 00:16:19]} {[%emt 00:00:18]} g5 {[%clk
00:18:00]} {[%emt 00:00:12]} 19. b5 {[%clk 00:15:39]} {[%emt 00:00:45]} Rb8
{[%clk 00:17:45]} {[%emt 00:00:20]} 20. Rab1 {[%clk 00:15:36]} {[%emt
00:00:08]} Qe8 {[%clk 00:15:17]} {[%emt 00:02:33]} 21. a4 {[%clk 00:15:18]}
{[%emt 00:00:23]} Nf6 {[%clk 00:15:09]} {[%emt 00:00:13]} 22. Rb4 {[%clk
00:14:48]} {[%emt 00:00:35]} Qd8 {[%clk 00:14:07]} {[%emt 00:01:06]} 23. Reb1
{[%clk 00:14:26]} {[%emt 00:00:27]} g4 {[%clk 00:13:34]} {[%emt 00:00:38]} 24.
Bf1 {[%clk 00:13:33]} {[%emt 00:00:57]} Qc7 {[%clk 00:12:51]} {[%emt 00:00:49]}
25. b6 {[%clk 00:12:18]} {[%emt 00:01:20]} axb6 {[%clk 00:12:52]} {[%emt
00:00:04]} 26. Rxb6 {[%clk 00:12:21]} {[%emt 00:00:02]} Bc8 {[%clk 00:12:27]}
{[%emt 00:00:29]} 27. a5 {[%clk 00:12:07]} {[%emt 00:00:20]} Ra8 {[%clk
00:11:30]} {[%emt 00:01:02]} 28. Na4 {[%clk 00:10:52]} {[%emt 00:01:21]} Nd7
{[%clk 00:11:20]} {[%emt 00:00:15]} 29. a6 {[%clk 00:10:38]} {[%emt 00:00:19]}
bxa6 {[%clk 00:10:38]} {[%emt 00:00:46]} 30. R6b2 {[%clk 00:09:50]} {[%emt
00:00:53]} a5 {[%clk 00:10:30]} {[%emt 00:00:13]} 31. Nb6 {[%clk 00:09:44]}
{[%emt 00:00:11]} Ra7 {[%clk 00:09:29]} {[%emt 00:01:05]} 32. Ra1 {[%clk
00:09:13]} {[%emt 00:00:37]} Bb7 {[%clk 00:09:09]} {[%emt 00:00:24]} 33. Rxa5
{[%clk 00:08:59]} {[%emt 00:00:19]} Rxa5 {[%clk 00:08:25]} {[%emt 00:00:49]} 34.
Qxa5 {[%clk 00:09:02]} {[%emt 00:00:02]} Ra8 {[%clk 00:08:28]} {[%emt
00:00:02]} 35. Qb4 {[%clk 00:08:56]} {[%emt 00:00:12]} Ra1 {[%clk 00:08:15]}
{[%emt 00:00:16]} 36. Kf2 {[%clk 00:08:26]} {[%emt 00:00:36]} Nb8 {[%clk
00:07:07]} {[%emt 00:01:13]} 37. Nxd5 {[%clk 00:07:31]} {[%emt 00:01:00]} cxd5
{[%clk 00:06:27]} {[%emt 00:00:45]} 38. Qxb7 {[%clk 00:07:34]} {[%emt
00:00:03]} Qxb7 {[%clk 00:06:30]} {[%emt 00:00:01]} 39. Rxb7 {[%clk 00:07:37]}
{[%emt 00:00:02]} Ra2+ {[%clk 00:06:34]} {[%emt 00:00:01]} 40. Be2 {[%clk
00:07:40]} {[%emt 00:00:03]} Ra8 {[%emt 00:00:52]} 1-0

[Event "Esbjerg Efterår 2021 - Esbjergmesterskabet"]
[Site "Esbjerg, Denmark"]
[Date "2021.10.22"]
[Round "3.5"]
[White "Husum, Lars"]
[Black "Pedersen, Lars Wilton"]
[Result "1-0"]
[TimeControl "1.-3. 20 min + 5 sek, 4.-7. 90 min + 30 sek"]
[WhiteElo "1876"]
[BlackElo "1991"]

1. d4 {[%clk 00:20:01]} {[%emt 00:00:09]} d5 {[%clk 00:19:55]} {[%emt
00:00:15]} 2. Bf4 {[%clk 00:20:04]} {[%emt 00:00:02]} c5 {[%clk 00:19:54]}
{[%emt 00:00:07]} 3. e3 {[%clk 00:19:57]} {[%emt 00:00:10]} Nc6 {[%clk
00:19:56]} {[%emt 00:00:04]} 4. c3 {[%clk 00:20:00]} {[%emt 00:00:02]} Nf6
{[%clk 00:19:55]} {[%emt 00:00:05]} 5. Nd2 {[%clk 00:20:03]} {[%emt 00:00:03]}
Qb6 {[%clk 00:19:05]} {[%emt 00:00:55]} 6. Rb1 {[%clk 00:20:04]} {[%emt
00:00:04]} Bf5 {[%clk 00:18:59]} {[%emt 00:00:11]} 7. dxc5 {[%clk 00:20:05]}
{[%emt 00:00:04]} Qxc5 {[%clk 00:18:56]} {[%emt 00:00:08]} 8. Nb3 {[%clk
00:19:51]} {[%emt 00:00:19]} Qb6 {[%clk 00:18:45]} {[%emt 00:00:16]} 9. Bd3
{[%clk 00:19:30]} {[%emt 00:00:26]} Bxd3 {[%clk 00:18:39]} {[%emt 00:00:12]} 10.
Qxd3 {[%clk 00:19:33]} {[%emt 00:00:01]} e5 {[%clk 00:18:31]} {[%emt 00:00:13]}
11. Bg5 {[%clk 00:18:52]} {[%emt 00:00:46]} Rd8 {[%clk 00:18:07]} {[%emt
00:00:30]} 12. Bxf6 {[%clk 00:17:25]} {[%emt 00:01:31]} gxf6 {[%clk 00:18:09]}
{[%emt 00:00:03]} 13. Ne2 {[%clk 00:17:26]} {[%emt 00:00:04]} a6 {[%clk
00:16:11]} {[%emt 00:02:04]} 14. Qf5 {[%clk 00:16:39]} {[%emt 00:00:51]} Ne7
{[%clk 00:16:01]} {[%emt 00:00:15]} 15. Qc2 {[%clk 00:13:29]} {[%emt 00:03:14]}
h5 {[%clk 00:13:59]} {[%emt 00:02:07]} 16. Rd1 {[%clk 00:12:17]} {[%emt
00:01:17]} f5 {[%clk 00:12:09]} {[%emt 00:01:56]} 17. c4 {[%clk 00:09:51]}
{[%emt 00:02:31]} dxc4 {[%clk 00:08:05]} {[%emt 00:04:09]} 18. Rxd8+ {[%clk
00:09:29]} {[%emt 00:00:27]} Qxd8 {[%clk 00:08:07]} {[%emt 00:00:04]} 19. Qxc4
{[%clk 00:09:31]} {[%emt 00:00:02]} Qd5 {[%clk 00:07:45]} {[%emt 00:00:27]} 20.
Qc7 {[%clk 00:08:10]} {[%emt 00:01:26]} f6 {[%clk 00:05:22]} {[%emt 00:02:28]}
21. f3 {[%clk 00:05:41]} {[%emt 00:02:33]} Nc6 {[%clk 00:03:08]} {[%emt
00:02:20]} 22. Qxb7 {[%clk 00:04:00]} {[%emt 00:01:45]} Bb4+ {[%clk 00:03:09]}
{[%emt 00:00:05]} 23. Kf2 {[%clk 00:04:04]} Rg8 {[%clk 00:02:33]} {[%emt
00:00:41]} 24. Rc1 {[%clk 00:03:41]} {[%emt 00:00:28]} Ne7 {[%clk 00:00:36]}
{[%emt 00:02:03]} 25. Qxb4 {[%clk 00:03:22]} {[%emt 00:00:23]} h4 {[%clk
00:00:14]} {[%emt 00:00:26]} 26. Nc3 {[%clk 00:02:59]} {[%emt 00:00:29]} Qd7
{[%clk 00:00:18]} {[%emt 00:00:02]} 27. Rd1 {[%clk 00:02:33]} {[%emt 00:00:30]}
Qe6 {[%clk 00:00:21]} {[%emt 00:00:02]} 28. Nc5 {[%clk 00:02:29]} {[%emt
00:00:10]} Qc6 {[%clk 00:00:20]} {[%emt 00:00:05]} 29. Nb7 {[%clk 00:01:13]}
{[%emt 00:01:21]} h3 {[%clk 00:00:10]} {[%emt 00:00:15]} 30. Rd8+ {[%clk
00:00:57]} {[%emt 00:00:21]} Kf7 {[%clk 00:00:14]} 31. Rxg8 {[%clk 00:00:56]}
{[%emt 00:00:07]} Nxg8 {[%clk 00:00:16]} {[%emt 00:00:03]} 32. Nd8+ {[%clk
00:00:51]} {[%emt 00:00:09]} {færdig} 1-0